bitfinex-derivatives/quotes_ETHF0:USTF0_20250702
["timestamp","ask_amount","ask_price","bid_price","bid_amount"]
[1751499939232,0.77515,2579.0,2578.9,0.77516]
[1751499939433,0.77515,2579.0,2578.9,0.77518]
[1751499940031,5.51180112,2579.1,2578.3,1.3483]
[1751499940235,5.51180112,2579.1,2577.5,3.87793]
[1751499940236,0.77533,2578.4,2578.2,0.77537]
[1751499940435,5.51180112,2578.8,2577.8,2.62802]
[1751499940735,0.77529,2578.6,2578.4,0.77532]
[1751499940936,0.77529,2578.6,2578.3,0.77534]
[1751499941135,2.11289,2578.6,2578.4,0.77531]
[1751499941533,2.11289,2578.6,2578.3,0.77534]
[1751499941835,0.7753,2578.5,2578.3,0.77534]
[1751499942432,2.11289,2578.6,2578.3,0.77534]
[1751499942636,1.3376,2578.6,2578.3,0.77534]
[1751499942837,1.3376,2578.6,2578.5,0.7753]
[1751499943536,6.15180112,2579.1,2578.7,0.77523]
[1751499943732,49.64128094,2579.0,2578.8,0.7752]
[1751499943931,0.96148094,2578.9,2578.1,1.93855]
[1751499944132,3.02049094,2578.8,2578.6,0.77526]
[1751499944332,0.96148094,2578.7,2578.6,0.77526]
[1751499944529,2.24528094,2578.7,2578.6,0.77526]
[1751499944733,11.215,2578.9,2578.3,0.6414]
[1751499944934,0.77515,2579.0,2578.8,0.7752]
[1751499945239,12.4988,2579.0,2578.9,0.77518]
[1751499945537,13.46148665,2579.0,2578.9,0.77518]
[1751499946942,0.96268665,2579.0,2578.9,0.77518]
[1751499947238,48.18393321,2579.2,2579.0,0.77513]
[1751499947539,0.96244151,2579.1,2579.0,0.77513]
[1751499947936,2.29784151,2579.1,2579.0,0.77513]
[1751499948336,3.07296151,2579.1,2579.0,0.77513]
[1751499948830,2.29784151,2579.1,2579.0,0.77513]
[1751499949036,11.22182321,2579.2,2579.1,0.77512]
[1751499949341,0.00582321,2579.2,2579.1,0.77512]
[1751499956842,11.216,2579.6,2579.5,0.775]
[1751499957643,16.72780112,2579.6,2579.5,0.775]
[1751499957844,18.06630112,2579.6,2579.5,0.775]
[1751499958047,18.84128112,2579.6,2579.5,0.775]
[1751499958240,0.77503,2579.4,2579.3,0.00582321]
[1751499959342,0.77501,2579.5,2579.3,0.00582321]
[1751499959544,0.77501,2579.5,2579.4,0.77501]
[1751499960245,0.77503,2579.4,2579.3,0.78086321]
[1751499960446,0.77503,2579.4,2579.3,0.00582321]
[1751499960844,0.77503,2579.4,2579.3,0.78088321]
[1751499961344,0.77503,2579.4,2579.3,0.00582321]
[1751499961745,0.77503,2579.4,2579.3,0.78088321]
[1751499962644,0.77503,2579.4,2579.3,0.00582321]
[1751499963244,6.28683112,2579.4,2579.3,0.00582321]
[1751499963444,7.24621988,2579.4,2579.3,0.00582321]
[1751499963642,1.93774,2579.2,2578.3,1.93839]
[1751499963946,0.77527,2578.6,2578.5,0.77528]
[1751499964249,0.77526,2578.7,2578.6,0.77527]
[1751499964943,0.77524,2578.7,2578.6,0.77525]
[1751499965439,11.212,2578.8,2578.5,0.77529]
[1751499965440,0.77529,2578.6,2578.5,0.77529]
[1751499965847,0.77526,2578.7,2578.5,0.7753]
[1751499966046,0.77527,2578.6,2578.5,0.77527]
[1751499966346,0.77526,2578.7,2578.6,0.77526]
[1751499966552,11.212,2578.8,2578.4,0.6603]
[1751499966846,0.77533,2578.4,2578.3,0.6724]
[1751499967647,0.77531,2578.5,2578.3,0.6724]
[1751499967847,11.212,2578.8,2578.6,0.77526]
[1751499968148,0.77525,2578.7,2578.6,0.77526]
[1751499968643,1.864,2579.2,2578.4,1.3122]
[1751499968844,0.77518,2578.9,2578.8,0.77518]
[1751499973149,0.77517,2579.0,2578.9,0.77517]
[1751499974246,0.77518,2578.9,2578.8,0.77519]
[1751499975750,3.97866734,2579.2,2578.6,1.3414]
[1751499975944,0.77516,2579.0,2578.9,0.77517]
[1751499976544,2.64606734,2579.0,2578.6,1.3414]
[1751499976746,3.42129734,2578.8,2578.7,0.77524]
[1751499976949,2.64606734,2578.8,2578.3,0.6724]
[1751499977149,0.77529,2578.6,2578.5,0.77529]
[1751499978451,0.77526,2578.7,2578.6,0.77526]
[1751499980355,0.77529,2578.6,2578.5,0.77529]
[1751499980555,3.42135734,2578.6,2578.5,0.7753]
[1751499980754,0.77529,2578.6,2578.5,0.7753]
[1751499980954,0.77525,2578.7,2578.6,0.77526]
[1751499981956,0.77528,2578.6,2578.5,0.77528]
[1751499982150,0.7753,2578.5,2578.3,1.2816]
[1751499982355,0.77528,2578.6,2578.5,0.7753]
[1751499983056,0.77523,2578.8,2578.7,0.77523]
[1751499983556,38.81806734,2578.9,2578.3,3.92766734]
[1751499983854,0.77526,2578.7,2578.6,0.77526]
[1751499985659,0.77522,2578.8,2578.7,0.77523]
[1751499986755,11.214,2579.4,2578.8,1.93802]
[1751499986958,11.214,2579.4,2579.3,0.77506]
[1751499986959,11.98904,2579.4,2579.3,0.77506]
[1751499987360,13.86006734,2579.4,2578.9,2.0153]
[1751499987656,0.77511,2579.2,2579.1,0.77511]
[1751499988458,1.93799,2578.9,2577.9,3.07506263]
[1751499988658,2.64606734,2578.2,2578.0,1.3064]
[1751499988852,0.77551,2577.8,2577.7,3.07506263]
[1751499989057,0.77556,2577.7,2577.5,1.44169]
[1751499989457,0.77556,2577.7,2577.6,0.77557]
[1751499989657,2.64606734,2577.9,2577.5,0.6661]
[1751499989857,3.42161734,2577.7,2577.5,0.6661]
[1751499990460,2.64606734,2577.7,2577.5,0.6661]
[1751499990759,0.77553,2577.8,2577.6,0.77555]
[1751499990961,3.42156734,2577.9,2577.7,0.77554]
[1751499991160,0.77551,2577.8,2577.7,0.77554]
[1751499991360,0.77551,2577.8,2577.6,0.77555]
[1751499991756,0.77551,2577.8,2577.5,2.0077]
[1751499991961,7.56770223,2578.1,2577.6,0.77555]
[1751499991962,0.7755,2577.9,2577.6,0.77555]
[1751499992458,0.77547,2578.0,2577.7,0.77553]
[1751499992662,0.77549,2577.9,2577.7,0.77553]
[1751499993265,0.77549,2577.9,2577.8,0.77551]
[1751499993661,0.77547,2578.0,2577.8,0.77551]
[1751499993961,47.381,2578.3,2578.2,0.77538]
[1751499995065,47.381,2578.3,2577.8,1.3507]
[1751499995263,48.15636,2578.3,2577.8,1.3507]
[1751499995565,0.77539,2578.2,2578.1,0.7754]
[1751499995766,47.381,2578.3,2578.1,0.7754]
[1751499996062,48.15637,2578.3,2578.1,0.7754]
[1751499996365,48.15637,2578.3,2578.1,0.77539]
[1751499996665,0.77539,2578.2,2578.1,0.77539]
[1751499996865,48.15637,2578.3,2578.1,0.77539]
[1751499997365,0.77539,2578.2,2578.1,0.77539]
[1751499997564,48.15638,2578.3,2578.2,0.77539]
[1751499998060,0.00582321,2578.5,2578.0,7.44793223]
[1751499998367,0.00582321,2578.5,2578.4,0.77533]
[1751500005764,4.21039749,2579.6,2579.1,0.77512]
[1751500005969,0.96055406,2579.2,2579.1,0.77512]
[1751500006171,0.77502,2579.5,2579.2,0.77507]
[1751500006567,0.77503,2579.4,2579.2,0.77507]
[1751500006766,0.77503,2579.4,2579.2,0.77509]
[1751500008071,0.77503,2579.4,2579.3,0.77506]
[1751500008570,0.77503,2579.4,2579.2,0.77506]
[1751500008773,0.77503,2579.4,2579.3,0.77506]
[1751500009073,0.77501,2579.5,2579.3,0.77504]
[1751500009275,0.77503,2579.4,2579.3,0.77504]
[1751500010872,36.16,2579.6,2579.3,0.77505]
[1751500011077,0.77504,2579.4,2579.3,0.77505]
[1751500013179,0.77507,2579.3,2579.2,0.77507]
[1751500013678,0.77505,2579.4,2579.3,0.77505]
[1751500013979,0.77506,2579.3,2579.2,0.77507]
[1751500014179,0.77506,2579.3,2579.2,0.77506]
[1751500014684,3.42055809,2579.4,2579.3,0.77506]
[1751500014983,0.77506,2579.3,2579.2,0.77507]
[1751500015479,3.42056809,2579.4,2579.3,0.77506]
[1751500016580,0.77507,2579.3,2579.2,0.77507]
[1751500019383,3.42056809,2579.4,2579.3,0.77506]
[1751500020583,0.77507,2579.3,2579.2,0.77507]
[1751500022781,2.64551809,2579.4,2579.1,0.7751]
[1751500023085,0.77508,2579.3,2579.2,0.77507]
[1751500024290,0.77514,2579.1,2579.0,0.77513]
[1751500024488,3.42065809,2579.1,2579.0,0.77513]
[1751500024990,0.77521,2578.8,2578.7,1.45812]
[1751500025189,3.42072809,2578.8,2578.7,1.45812]
[1751500026994,2.64551809,2578.8,2578.7,1.45812]
[1751500027590,3.42072809,2578.8,2578.7,0.6829]
[1751500027989,3.42072809,2578.8,2578.7,1.45814]
[1751500028189,3.42072809,2578.8,2578.7,0.6829]
[1751500028383,3.42072809,2578.8,2578.6,0.77525]
[1751500028687,0.77525,2578.7,2578.6,0.77525]
[1751500029894,3.42074809,2578.8,2578.7,0.77524]
[1751500030094,0.77525,2578.7,2578.6,0.77526]
[1751500030295,0.77525,2578.7,2578.2,3.95631041]
[1751500030296,0.77536,2578.3,2578.2,0.00582321]
[1751500030497,50.76187809,2578.3,2578.2,0.00582321]
[1751500040003,50.76387809,2578.3,2578.2,0.00582321]
[1751500042100,60.04478749,2579.1,2578.2,0.00582321]
[1751500042295,50.94894498,2579.0,2578.6,0.77526]
[1751500042603,4.58354809,2578.8,2578.3,0.6597]
[1751500042805,0.77536,2578.3,2578.2,0.00582321]
[1751500043102,36.91036,2578.3,2578.2,0.00582321]
[1751500043405,38.26106,2578.3,2578.2,0.00582321]
[1751500048909,36.91036,2578.3,2578.2,0.00582321]
[1751500049409,3.21496,2578.9,2578.2,0.00582321]
[1751500049601,3.27851809,2579.0,2578.7,0.77524]
[1751500049901,36.131,2578.9,2578.8,0.77521]
[1751500050704,36.90618,2578.9,2578.8,0.77521]
[1751500051110,0.77517,2579.0,2578.9,0.77518]
[1751500051312,36.90417,2579.0,2578.9,0.77518]
[1751500051512,0.77518,2578.9,2578.8,0.77519]
[1751500053412,0.77526,2578.7,2578.6,0.77526]
[1751500053615,36.90026,2578.7,2578.6,0.77526]
[1751500053912,36.90024,2578.7,2578.6,0.77526]
[1751500054109,36.125,2578.7,2578.6,0.77526]
[1751500054617,36.90024,2578.7,2578.6,0.77526]
[1751500055615,36.125,2578.7,2578.6,0.77526]
[1751500055818,55.834,2579.1,2578.4,4.58384809]
[1751500056113,55.834,2579.1,2578.9,0.77518]
[1751500056114,1.73999258,2579.0,2578.9,0.77518]
[1751500056314,0.7752,2578.9,2578.8,0.7752]
[1751500056809,36.12,2579.0,2578.9,0.77518]
[1751500057007,37.86036776,2579.0,2578.9,0.77518]
[1751500057206,0.77518,2578.9,2578.8,0.77519]
[1751500057414,38.76551809,2579.0,2578.7,1.2874]
[1751500057615,0.77519,2578.9,2578.8,0.7752]
[1751500057816,0.77516,2579.0,2578.9,0.77517]
[1751500058017,37.85741456,2579.0,2578.9,0.77517]
[1751500058312,0.77518,2578.9,2578.8,0.77519]
[1751500058720,0.77521,2578.8,2578.7,2.06262]
[1751500058921,36.89221,2578.8,2578.7,2.06262]
[1751500059315,36.117,2578.8,2578.7,2.06262]
[1751500062325,36.89221,2578.8,2578.7,1.2874]
[1751500062526,0.77524,2578.7,2578.6,0.77525]
[1751500064328,36.89223,2578.8,2578.6,0.77525]
[1751500064528,36.117,2578.8,2578.6,0.77525]
[1751500064828,36.89223,2578.8,2578.7,0.77524]
[1751500072227,55.834,2579.1,2578.5,0.6761]
[1751500072429,0.96534069,2579.0,2578.9,0.77518]
[1751500072631,37.06534069,2579.0,2578.9,0.77518]
[1751500072831,36.1,2579.0,2578.9,0.77518]
[1751500073032,36.87515,2579.0,2578.9,0.77518]
[1751500073335,0.77515,2579.0,2578.9,0.77518]
[1751500073536,37.8406155,2579.0,2578.9,0.77518]
[1751500073931,1.7406155,2579.0,2578.9,0.77518]
[1751500074237,37.83946371,2579.0,2578.9,0.77518]
[1751500076738,37.06031371,2579.0,2578.9,0.77518]
[1751500077038,36.095,2579.0,2578.9,0.77518]
[1751500077432,56.60912,2579.1,2579.0,0.77515]
[1751500077633,93.66959988,2579.1,2579.0,0.77515]
[1751500077829,92.89447988,2579.1,2579.0,0.77515]
[1751500078036,91.928,2579.1,2579.0,0.77515]
[1751500078338,92.89454051,2579.1,2579.0,0.77515]
[1751500078935,0.96654051,2579.1,2579.0,0.77515]
[1751500079130,11.96903,2579.4,2579.3,0.77506]
[1751500079330,0.96665658,2579.4,2579.3,0.77506]
[1751500079535,36.09,2579.4,2579.3,1.4238458]
[1751500080337,11.194,2579.6,2579.5,0.775]
[1751500080532,49.02518957,2579.6,2579.5,0.775]
[1751500081136,0.96721957,2579.6,2579.5,0.775]
[1751500081738,0.96721957,2579.6,2579.5,3.42051809]
[1751500081937,55.839,2579.9,2579.8,0.77491]
[1751500082142,92.88867321,2579.9,2579.8,0.77491]
[1751500082540,91.922,2579.9,2579.8,0.77491]
[1751500083141,92.69688,2579.9,2579.8,0.77491]
[1751500085336,55.839,2579.9,2579.8,0.77491]
[1751500085543,55.839,2579.9,2579.8,1.44331]
[1751500085744,91.914,2579.9,2579.8,1.44331]
[1751500086647,11.183,2580.1,2580.0,0.77485]
[1751500087246,11.95782,2580.1,2580.0,0.77485]
[1751500091840,11.183,2580.1,2580.0,0.77485]
[1751500094646,36.058,2580.3,2579.9,1.9372]
[1751500094851,36.055,2580.4,2580.0,2.05203]
[1751500095046,0.77482,2580.1,2580.0,2.05203]
[1751500095247,0.77488,2580.0,2579.9,0.77487]
[1751500095849,2.64551809,2580.3,2579.8,0.6684]
[1751500095850,0.77483,2580.1,2580.0,0.77483]
[1751500098151,0.77487,2580.0,2579.9,0.77485]
[1751500098545,0.77488,2579.9,2579.8,1.44328]
[1751500098751,0.77494,2579.7,2579.6,0.00582321]
[1751500098951,3.42045809,2579.7,2579.6,0.00582321]
[1751500099454,1.93745,2579.6,2578.8,0.77519]
[1751500099648,0.77519,2578.9,2578.7,0.77522]
[1751500100449,0.77522,2578.8,2578.6,0.77525]
[1751500101551,0.77522,2578.8,2578.4,3.32091809]
[1751500101552,0.77522,2578.8,2578.7,0.77524]
[1751500101754,0.7752,2578.9,2578.8,0.77521]
[1751500102449,36.045,2579.0,2578.8,0.77521]
[1751500102650,0.77503,2579.4,2579.2,0.77509]
[1751500102845,0.77503,2579.4,2579.3,0.77506]
[1751500102846,36.82003,2579.4,2579.3,0.77506]
[1751500103050,36.82003,2579.4,2579.2,0.77507]
[1751500103853,0.77506,2579.3,2579.2,0.77507]
[1751500104055,0.77509,2579.2,2579.1,1.46801]
[1751500104255,0.77508,2579.3,2579.1,1.46801]
[1751500104655,36.82004,2579.4,2579.1,0.6929]
[1751500104953,36.82004,2579.4,2579.2,0.77509]
[1751500105154,0.77509,2579.2,2579.1,1.46802]
[1751500105349,0.77508,2579.3,2579.1,1.468]
[1751500105550,2.64551809,2579.3,2578.7,1.3569]
[1751500105747,0.77513,2579.1,2579.0,0.77514]
[1751500106356,2.17511,2579.2,2579.1,0.77512]
[1751500106656,0.77507,2579.3,2579.1,0.77512]
[1751500106855,0.77509,2579.2,2579.1,0.77512]
[1751500107259,0.77508,2579.3,2579.2,0.77509]
[1751500108457,0.77509,2579.2,2579.1,0.7751]
[1751500108662,36.045,2579.4,2579.0,0.77513]
[1751500108663,0.77512,2579.1,2579.0,0.77513]
[1751500109761,0.7752,2578.9,2578.8,0.7752]
[1751500113469,0.77521,2578.8,2578.7,1.44672]
[1751500113765,38.0652,2579.0,2578.1,1.93848]
[1751500113766,0.77529,2578.6,2578.5,0.7753]
[1751500113969,0.7753,2578.5,2578.4,0.77531]
[1751500115158,0.77533,2578.4,2578.3,1.3421]
[1751500115368,0.77543,2578.1,2578.0,0.77543]
[1751500115563,0.77545,2578.0,2577.9,2.11626]
[1751500115762,4.58418809,2578.0,2577.2,3.07506263]
[1751500115970,0.77563,2577.4,2577.3,1.3408]
[1751500118268,0.77562,2577.5,2577.3,2.11646]
[1751500118571,0.77563,2577.4,2577.3,2.11646]
[1751500120666,0.77563,2577.4,2577.3,1.3408]
[1751500120867,43.68551809,2577.4,2576.2,1.93994]
[1751500121069,2.64551809,2577.1,2576.5,1.3285]
[1751500121267,0.7758,2576.9,2576.7,0.77582]
[1751500121468,0.7758,2576.9,2576.5,2.6809]
[1751500121469,0.77581,2576.8,2576.6,0.77585]
[1751500122072,0.77581,2576.8,2576.7,0.77584]
[1751500123474,0.77579,2576.9,2576.7,0.77584]
[1751500124174,0.77581,2576.8,2576.7,0.77584]
[1751500127175,0.77581,2576.9,2576.5,2.6809]
[1751500127474,0.77576,2577.0,2576.9,0.77577]
[1751500128674,0.77579,2576.9,2576.8,0.77579]
[1751500129776,0.77576,2577.0,2576.9,0.77576]
[1751500133074,0.77575,2577.1,2577.0,0.77574]
[1751500133275,0.77571,2577.2,2577.1,0.77571]
[1751500133670,0.77572,2577.1,2577.0,1.42393]
[1751500133867,0.77572,2577.1,2577.0,2.77473]
[1751500134171,2.64551809,2577.4,2576.7,4.58509809]
[1751500134172,2.64551809,2577.2,2576.7,0.77583]
[1751500134371,0.77583,2576.8,2576.7,0.77583]
[1751500134575,0.77578,2576.9,2576.6,0.77585]
[1751500134875,0.77578,2576.9,2576.7,0.77584]
[1751500135273,0.77578,2576.9,2576.8,0.77581]
[1751500136077,0.77587,2576.6,2576.5,0.6913]
[1751500136275,3.42138809,2576.6,2576.5,0.6913]
[1751500136770,39.45838809,2576.6,2576.5,0.6913]
[1751500137771,36.036,2576.7,2576.5,0.6913]
[1751500137982,36.036,2576.7,2576.6,0.77586]
[1751500138172,2.5965,2577.2,2576.5,2.0911]
[1751500138173,2.0196,2577.2,2576.5,2.0911]
[1751500138378,0.77579,2576.9,2576.5,2.0911]
[1751500138578,0.77579,2576.9,2576.7,0.77581]
[1751500138877,2.64551809,2577.0,2576.9,0.77578]
[1751500139075,2.64551809,2577.0,2576.5,2.0911]
[1751500139277,0.77578,2576.9,2576.8,0.77579]
[1751500139479,3.42127809,2577.0,2576.9,0.77578]
[1751500139680,2.64551809,2577.0,2576.5,4.03082]
[1751500139879,3.42126809,2577.0,2576.8,0.77579]
[1751500140078,3.42126809,2577.0,2576.5,4.03082]
[1751500140278,0.77578,2576.9,2576.5,4.03082]
[1751500140479,3.42128809,2577.0,2576.9,0.77578]
[1751500141181,0.77579,2576.9,2576.8,0.77579]
[1751500141382,0.77581,2576.8,2576.7,0.77582]
[1751500142273,2.64551809,2576.8,2576.5,2.0911]
[1751500142477,2.64551809,2576.8,2576.7,0.77584]
[1751500142478,3.42133809,2576.8,2576.7,0.77584]
[1751500142879,2.64551809,2576.8,2576.7,0.77584]
[1751500143682,3.42132809,2576.8,2576.7,0.77584]
[1751500144383,36.8108,2576.9,2576.8,0.77581]
[1751500144587,37.77486569,2576.9,2576.8,0.77581]
[1751500144886,36.035,2576.9,2576.8,0.77581]
[1751500145274,37.0006899,2576.9,2576.8,0.77581]
[1751500145781,37.7734699,2576.9,2576.8,0.77581]
[1751500146783,36.9976899,2576.9,2576.8,0.77581]
[1751500146984,0.9656899,2576.9,2576.8,0.77581]
[1751500147186,11.168,2577.2,2577.1,0.77572]
[1751500147487,48.16355361,2577.2,2577.1,0.77572]
[1751500148182,58.51551809,2577.5,2577.3,0.77566]
[1751500148183,11.168,2577.4,2577.3,0.77566]
[1751500148382,48.93845193,2577.4,2577.3,0.77566]
[1751500150082,0.96582193,2577.4,2577.3,0.77566]
[1751500150286,36.99282193,2577.4,2577.3,0.77566]
[1751500150487,36.99306693,2577.4,2577.3,0.77566]
[1751500150986,0.77573,2577.1,2577.0,0.77573]
[1751500151187,39.44724809,2577.1,2577.0,0.77573]
[1751500151382,38.67151809,2577.1,2576.7,0.6502]
[1751500151684,3.42132809,2576.8,2576.7,0.6502]
[1751500151981,0.77584,2576.7,2576.6,0.77585]
[1751500152186,2.64551809,2576.8,2576.7,0.77584]
[1751500152886,0.77585,2576.7,2576.6,0.77585]
[1751500153083,38.67575837,2576.8,2576.0,3.07506263]
[1751500153388,3.42146809,2576.4,2576.3,0.77596]
[1751500153989,0.96518716,2576.4,2576.3,0.77596]
[1751500154188,36.79791,2576.5,2576.4,0.77593]
[1751500154386,37.76293485,2576.5,2576.4,0.77593]
[1751500154588,36.98702485,2576.5,2576.4,0.77593]
[1751500154782,13.10641,2577.0,2576.4,0.77593]
[1751500154783,2.64551809,2577.0,2576.4,0.77593]
[1751500154986,36.98705458,2576.9,2576.8,0.7758]
[1751500155188,36.98705458,2576.9,2576.4,0.77593]
[1751500155189,0.0063909,2576.8,2576.7,0.77582]
[1751500155489,0.96505458,2576.8,2576.7,0.77582]
[1751500155888,0.96505458,2576.8,2576.7,0.77584]
[1751500155889,36.02,2576.8,2576.7,0.77584]
[1751500156784,36.021,2576.9,2576.8,0.77578]
[1751500156986,36.79678,2576.9,2576.8,0.77578]
[1751500157187,36.021,2576.9,2576.8,0.77578]
[1751500159694,36.018,2577.0,2576.6,1.93968]
[1751500159892,36.018,2577.0,2576.9,0.77578]
[1751500161193,36.79375,2577.0,2576.9,0.77578]
[1751500161593,36.018,2577.0,2576.9,0.77578]
[1751500161796,0.77564,2577.4,2577.3,0.77564]
[1751500161985,0.96472842,2577.4,2577.3,0.77566]
[1751500162190,36.015,2577.4,2577.3,0.77566]
[1751500162393,36.015,2577.4,2577.2,0.77568]
[1751500162694,0.77566,2577.3,2577.2,0.77568]
[1751500163296,36.79065,2577.4,2577.3,0.77566]
[1751500163594,38.15055,2577.4,2577.3,0.77566]
[1751500167503,36.015,2577.4,2577.3,0.77566]
[1751500167904,56.6456,2577.5,2577.4,0.77563]
[1751500168104,91.878,2577.5,2577.4,0.77563]
[1751500169605,55.87,2577.5,2577.4,0.77563]
[1751500169806,91.877,2577.5,2577.4,0.77563]
[1751500170005,92.6526,2577.5,2577.4,0.77563]
[1751500170302,0.77559,2577.6,2577.5,0.77558]
[1751500170507,0.77562,2577.5,2577.4,0.77561]
[1751500171907,0.77562,2577.5,2577.4,0.77563]
[1751500172206,36.78059,2577.6,2577.5,0.7756]
[1751500172402,0.7756,2577.5,2577.4,0.77561]
[1751500173409,38.14859,2577.6,2577.5,0.7756]
[1751500174110,0.7756,2577.5,2577.4,0.77561]
[1751500176310,38.14858,2577.6,2577.5,0.7756]
[1751500176610,0.7756,2577.5,2577.4,0.77561]
[1751500176905,36.005,2577.6,2577.4,0.77561]
[1751500177111,0.77559,2577.6,2577.5,1.4344]
[1751500177312,36.77259,2577.6,2577.5,1.4344]
[1751500177706,36.77259,2577.6,2577.5,0.6588]
[1751500177909,39.4218497,2577.6,2577.5,0.6588]
[1751500178414,39.4218497,2577.6,2577.5,1.4344]
[1751500179515,39.4218497,2577.6,2577.5,0.6588]
[1751500181616,0.7756,2577.5,2577.4,0.77561]
[1751500183216,0.7756,2577.5,2577.3,1.2816]
[1751500183217,4.74455749,2578.2,2577.3,5.8700097]
[1751500183414,0.77555,2577.7,2577.6,0.77555]
[1751500183719,0.77557,2577.6,2577.5,0.77558]
[1751500184616,4.5881497,2577.7,2577.3,1.2816]
[1751500184921,0.77563,2577.4,2577.3,2.05725]
[1751500185121,3.4248797,2577.5,2577.4,0.77563]
[1751500186119,4.38992278,2577.5,2577.4,0.77563]
[1751500186520,0.77563,2577.4,2577.3,2.05724]
[1751500187822,0.77563,2577.4,2577.3,2.05726]
[1751500188817,2.6492597,2577.6,2577.3,1.2816]
[1751500189022,0.77563,2577.4,2577.3,2.05725]
[1751500190118,3.4248897,2577.4,2577.3,0.6342]
[1751500190318,4.39068285,2577.4,2577.3,0.6342]
[1751500193127,0.7757,2577.2,2577.1,0.7757]
[1751500193626,0.77572,2577.1,2577.0,2.11954]
[1751500193827,0.77572,2577.1,2577.0,2.11955]
[1751500194526,3.4249597,2577.2,2577.1,0.77572]
[1751500196027,0.77567,2577.3,2577.2,0.77567]
[1751500196227,1.74993018,2577.3,2577.2,0.77567]
[1751500196828,0.97426018,2577.3,2577.2,0.77567]
[1751500197727,35.977,2577.4,2577.3,0.77566]
[1751500197928,36.95125462,2577.4,2577.3,0.77566]
[1751500198828,35.977,2577.4,2577.3,0.77566]
[1751500199526,37.72691952,2577.4,2577.3,0.77566]
[1751500200628,40.37617922,2577.4,2577.3,0.77566]
[1751500201026,0.77572,2577.1,2577.0,0.6774]
[1751500201232,0.77587,2576.6,2576.5,2.17239]
[1751500201425,2.6492597,2576.8,2576.5,0.6837]
[1751500201626,0.77584,2576.7,2576.6,0.77585]
[1751500203227,2.6492597,2576.8,2576.5,0.6837]
[1751500203428,0.77574,2577.1,2577.0,0.77575]
[1751500203628,0.77575,2577.0,2576.9,0.77575]
[1751500203829,0.77575,2577.0,2576.9,0.77576]
[1751500204331,0.77585,2576.7,2576.6,0.77585]
[1751500204533,3.4250797,2576.8,2576.7,0.77584]
[1751500205234,0.77585,2576.7,2576.6,0.77585]
[1751500206428,2.6492597,2576.8,2576.5,0.6837]
[1751500206629,3.4250797,2576.8,2576.7,0.77584]
[1751500207534,0.77584,2576.7,2576.6,0.77585]
[1751500208035,0.77597,2576.3,2576.1,0.77599]
[1751500208230,0.77599,2576.2,2576.1,0.6465]
[1751500208430,0.77599,2576.2,2576.1,1.42252]
[1751500210534,0.77598,2576.3,2576.1,1.42252]
[1751500210728,2.6492597,2576.4,2576.1,1.42252]
[1751500211033,0.77599,2576.2,2576.1,0.6465]
[1751500211230,0.77598,2576.3,2576.1,1.42249]
[1751500211433,0.77598,2576.3,2576.2,0.77599]
[1751500211732,3.4252097,2576.4,2576.3,0.77596]
[1751500211933,0.77597,2576.3,2576.2,0.77597]
[1751500212934,0.77599,2576.2,2576.1,1.4225]
[1751500213730,0.77598,2576.3,2576.2,0.77598]
[1751500214735,0.77599,2576.2,2576.1,1.42249]
[1751500215336,0.77598,2576.3,2576.2,0.77598]
[1751500217841,0.77599,2576.2,2576.1,1.4225]
[1751500220041,0.77598,2576.3,2576.2,0.77597]
[1751500222142,2.6492597,2576.4,2575.9,0.6719]
[1751500222342,3.4252697,2576.2,2576.1,0.77602]
[1751500223237,3.4252697,2576.2,2575.9,0.6719]
[1751500223438,0.77604,2576.1,2576.0,0.77603]
[1751500225938,3.4252697,2576.2,2576.1,0.77602]
[1751500230944,0.77594,2576.4,2576.3,0.77594]
[1751500231145,1.75099212,2576.4,2576.3,0.77594]
[1751500231346,3.62431182,2576.4,2575.9,0.6719]
[1751500231545,0.77604,2576.1,2576.0,0.77604]
[1751500231845,0.77605,2576.0,2575.9,1.44796]
[1751500233252,2.6492597,2576.2,2575.9,0.6719]
[1751500233548,0.77605,2576.0,2575.9,1.44797]
[1751500235048,0.77605,2576.0,2575.9,0.6719]
[1751500235245,0.77605,2576.0,2575.4,1.94055]
[1751500235246,1.94042,2575.7,2575.2,3.07506263]
[1751500235450,1.94042,2575.7,2574.9,3.84943398]
[1751500235451,2.6492597,2575.3,2574.9,3.07506263]
[1751500235753,0.77635,2575.0,2574.8,0.77639]
[1751500236050,3.4255997,2575.1,2574.9,0.77638]
[1751500236249,2.6492597,2575.1,2574.7,2.072]
[1751500236547,15.06474,2575.4,2574.4,0.48585332]
[1751500236548,2.6492597,2574.9,2574.4,0.48585332]
[1751500236749,0.00887776,2575.0,2574.2,0.7017]
[1751500236750,0.77656,2574.3,2574.2,0.7017]
[1751500237048,3.4258097,2574.4,2574.2,1.95762637]
[1751500237348,2.6492597,2574.4,2574.3,0.77656]
[1751500237551,0.77647,2574.6,2574.4,0.77652]
[1751500237750,2.6492597,2574.7,2574.3,1.2938]
[1751500237950,0.77648,2574.6,2574.3,2.07035]
[1751500238252,0.00970742,2574.6,2574.3,1.2938]
[1751500238659,0.00970742,2574.6,2574.4,0.77652]
[1751500239458,0.78617742,2574.6,2574.3,2.07034]
[1751500239658,0.78617742,2574.6,2574.4,0.77652]
[1751500239958,2.6492597,2574.9,2574.3,1.2938]
[1751500240157,0.77641,2574.8,2574.6,0.77646]
[1751500241055,3.4256997,2574.7,2574.5,0.77648]
[1751500241960,0.78597112,2574.6,2574.4,1.46733]
[1751500242354,3.4257597,2574.5,2574.4,0.6908]
[1751500242656,3.878,2574.2,2572.0,7.68628066]
[1751500242954,5.2985194,2572.1,2569.2,1.3935]